[Event "NY Presidents Day IM-B 2024"]
[Site "New York"]
[Date "2024.02.19"]
[Round "8.4"]
[White "Xu, Grant"]
[Black "Pang, Qi"]
[Result "0-1"]
[ECO "C54"]
[WhiteElo "2313"]
[BlackElo "2148"]
[Annotator "TA"]
[PlyCount "150"]
[EventDate "2024.02.14"]
[EventType "schev"]
[EventCountry "USA"]
[SourceTitle "playchess.com"]
[Source "ChessBase"]
[SourceQuality "1"]
[TimeControl "5400+30"]

{[%evp 15,150,0,0,0,11,8,11,10,2,0,21,11,27,17,14,0,0,0,-10,-65,-32,-26,0,-34,0,0,0,-22,-30,-28,5,-8,0,0,0,0,0,0,0,0,0,0,0,0,0,-12,-16,-14,-20,-48,-50,-59,-20,-61,-69,-73,-73,-127,-125,-179,-158,-195,-190,-170,-122,-125,-141,-173,0,-20,0,0,-7,-34,-50,-498,-69,-77,0,0,0,0,0,-39,0,-250,-12,-1140,-1108,-766,-758,-1516,-954,-942,-916,-914,-907,-855,-819,-757,-720,-921,-836,-927,-902,-807,-733,-5061,-1196,-1620,-1583,-1739,-1721,-4134,-4068,-4134,-2802,-686,-878,-857,-675,-836,-805,-5022,-5022,-5469,-5393,-29987,-29982,-29987,-5416,-29988,-29989,-29994,-29995,-29995,-382]} 1. e4 {[%emt 0:00:03]} e5 {[%emt 0:06:27]} 2. Nf3 {[%emt 0:00:09]} Nc6 {[%emt 0:00:03]} 3. Bc4 {[%emt 0:00:08]} Bc5 {[%emt 0:00:10]} 4. c3 {[%emt 0:00:10]} Nf6 {[%emt 0:00:04]} 5. d4 {[%emt 0:00:20]} exd4 {[%emt 0:00:04]} 6. cxd4 {[%emt 0:00:08]} Bb4+ {[%emt 0:00:03]} 7. Nbd2 {[%emt 0:00:39]} d5 {[%emt 0:05:38]} 8. exd5 {[%emt 0:00:45]} Nxd5 {[%emt 0:00:05]} 9. O-O {[%emt 0:03:18]} O-O {[%emt 0:00:48]} 10. a3 {[%emt 0:03:54]} Bxd2 {[%emt 1:22:08]} 11. Bxd2 {[%emt 0:00:09] Die Stellung ist ausgeglichen.} Nb6 {[%emt 0:00:00] Ein dynamisches Springerpaar.} 12. Ba2 {[%emt 0:11:40]} Bg4 {[%emt 0:00:00]} 13. h3 {[%emt 0:00:12]} Bh5 {[%emt 0:00:00]} 14. g4 {[%emt 0:02:27]} Bg6 {[%emt 0:00:00]} 15. d5 {[%emt 0:09:33]} Nxd5 {[%emt 0:00:00]} 16. Qb3 {[%emt 0:02:05][%csl LRb7,LRd5]} Nb6 {[%emt 0:00:00][%cal Bd5b6,Bb6a4,Ba4c5,Bc5e4][%mdl 32]} 17. Bf4 {[%emt 0:02:46]} (17. Rfe1 $11) 17... Qf6 {[%emt 0:00:00]} (17... Be4 {sieht schärfer aus.} 18. Ng5 Qf6 19. Be3 Rae8) 18. Bg5 {[%emt 0:10:01] [#]} Qe6 {[%emt 0:00:00]} 19. Qc3 {[%emt 0:18:26]} (19. Qd1 Qd6) 19... Na4 {[%emt 0:00:00]} 20. Qd2 {[%emt 0:00:33]} Qd6 {[%emt 0:00:00]} 21. Rad1 {[%emt 0:00:28]} Qxd2 {[%emt 0:00:00]} 22. Rxd2 {[%emt 0:00:14]} Nc5 {[%emt 0:00:00]} 23. b4 {[%emt 0:03:13]} Ne4 {[%emt 0:00:00][%cal Oh7h6] Droht stark ...h6!} 24. Rd7 {[%emt 0:00:12]} Nxg5 {[%emt 0:00:00]} 25. Nxg5 {[%emt 0:00:05][%cal Of2f4]} h6 {[%emt 0:00:00]} 26. Nf3 {[%emt 0:00:38][%cal Ob4b5]} Rac8 {[%emt 0:00:00]} 27. Nh4 {[%emt 0:02:05]} Bc2 $36 {[%emt 0:00:00][%mdl 2048] Schwarz hat gut koordiniertes Spiel.} 28. b5 {[%emt 0:06:28]} Ne5 {[%emt 0:00:00]} 29. Rd2 {[%emt 0:05:14]} g5 {[%emt 0:00:00]} 30. Rxc2 {[%emt 0:05:06]} gxh4 {[%emt 0:00:00]} 31. f4 {[%emt 0:00:07]} Ng6 {[%emt 0:00:00]} 32. f5 {[%emt 0:00:22]} Ne5 {[%emt 0:00:00]} 33. f6 {[%emt 0:05:13]} Rfe8 {[%emt 0:00:00]} 34. Bd5 {[%emt 0:01:35]} c6 {[%emt 0:00:00]} 35. bxc6 {[%emt 0:00:52]} bxc6 {[%emt 0:00:00]} 36. Bh1 {[%emt 0:03:07]} (36. Be4 $142) 36... c5 $1 $17 {[%emt 0:00:00]} 37. Rf5 {[%emt 0:00:23]} (37. a4 $17) 37... c4 $19 {[%emt 0:00:00]} 38. g5 {[%emt 0:00:47]} c3 {[%emt 0:00:46]} 39. gxh6 {[%emt 0:01:26]} Rc5 {[%emt 0:02:26] Verhindert Bd5.} (39... Nd3 $19 {...Ne1 ist eine echte Drohung.} 40. Bd5 Re1+ 41. Rf1 Re3 42. h7+ Kh8 43. Bxf7 Ne1 (43... Rxh3 44. Rg2 $14) (43... Kxh7 44. Bb3 $14) 44. Rxe1 (44. Rc1 $2 Rg3+ 45. Kh1 Rxh3+ 46. Kg1 Nf3+ 47. Kf2 Rc6 $19) 44... Rxe1+ 45. Kf2 Re5) 40. Be4 {[%emt 0:03:30]} Kh8 {[%emt 0:01:41]} 41. Kf1 {[%emt 0:00:32]} Rd8 $2 {[%emt 0:01:13]} (41... Rc7 $19 {...Nc4 wäre nun fies.} 42. Rf4 Rc4) 42. Rg5 {[%emt 0:00:31]} Rd4 {[%emt 0:00:35]} 43. Rcg2 $1 {[%emt 0:01:11][%csl Gg2][%cal Rg5g8]} Rd1+ {[%emt 0:00:34]} (43... Rxe4 44. Rg8+ Kh7 45. R2g7+ Kxh6 46. Rh8#) 44. Ke2 {[%emt 0:00:01][%csl Gg2][%cal Rg5g8]} Rd2+ {[%emt 0:00:05]} 45. Ke1 $2 {[%emt 0:00:15][%mdl 8192]} ({Weiss braucht} 45. Kf1 $1 $15 Rd1+ (45... Rxg2 46. Kxg2 Nd7 47. Rg7 $11) 46. Ke2 Rd2+ 47. Kf1 Rxg2 48. Kxg2) 45... Rxg2 $2 {[%emt 0:02:39]} (45... Nd3+ $19 46. Bxd3 Rxg5 47. Rxg5 Rxd3) 46. Rxg2 {[%emt 0:00:01][%mdl 4096] Endspiel. [#] KRB-KRN} Nd7 {[%emt 0:00:24]} (46... Nf3+ $1 $17 47. Kd1 (47. Bxf3 $2 c2 $19) 47... Nd4) 47. Kd1 $11 {[%emt 0:01:27]} Nxf6 {[%emt 0:00:18]} 48. Bd3 {[%emt 0:00:28]} Rh5 {[%emt 0:02:17]} 49. Kc2 {[%emt 0:00:20]} Nd5 {[%emt 0:00:41] Und jetzt ...Ne3+ wäre schön.} (49... Rxh6 {vereinfacht} 50. Rf2 Kg7 51. Kxc3 Nd5+) 50. Rf2 $2 {[%emt 0:00:06] [#] Schwarz hat alles unter Kontrolle.} (50. Rg7 $11 {und Weiss ist OK.}) 50... f5 $2 {[%emt 0:01:42]} ({Minderwertig wäre} 50... Rxh6 51. Rxf7 Rb6 52. Rh7+ Kg8 53. Rxa7 Rb2+ 54. Kc1 $11) (50... Ne3+ $1 $19 51. Kb3 Rd5 (51... Rxh6 52. Rxf7 c2 53. Rc7 $11)) 51. Bc4 $2 {[%emt 0:00:38][%mdl 8192]} (51. Kb3 $11) 51... Ne3+ $19 {[%emt 0:00:41]} 52. Kd3 {[%emt 0:00:29]} c2 {[%emt 0:00:41]} 53. Kd2 {[%emt 0:00:48]} Nxc4+ {[%emt 0:00:06]} 54. Kxc2 {[%emt 0:00:02] KRN-KR} Ne5 {[%emt 0:01:00]} 55. Rf4 {[%emt 0:00:44]} Kh7 {[%emt 0:00:20]} 56. Ra4 {[%emt 0:00:07]} Nc6 {[%emt 0:00:12]} 57. Kd2 {[%emt 0:00:29]} Rxh6 {[%emt 0:00:43]} (57... Kxh6 $2 58. Ra6 $17) 58. Ke3 {[%emt 0:00:11]} Re6+ {[%emt 0:00:25]} 59. Kf3 {[%emt 0:00:05]} Kg6 {[%emt 0:00:22] Droht ...Kg5 und aus.} 60. Rxh4 {[%emt 0:00:07]} Ne5+ {[%emt 0:00:02]} 61. Kf4 {[%emt 0:00:23]} Nf7 {[%emt 0:00:27]} 62. Kf3 {[%emt 0:00:32]} Ra6 {[%emt 0:00:08]} 63. a4 {[%emt 0:00:13]} Ne5+ {[%emt 0:00:28]} 64. Kg3 {[%emt 0:00:25]} Rc6 {[%emt 0:00:49]} 65. Rb4 {[%emt 0:00:14]} Rc3+ {[%emt 0:00:23]} 66. Kg2 {[%emt 0:00:09]} Rc4 {[%emt 0:01:06]} 67. Rb5 {[%emt 0:00:05]} Nc6 {[%emt 0:00:03]} 68. a5 {[%emt 0:00:27]} Kg5 {[%emt 0:00:27]} 69. Rb7 {[%emt 0:00:25]} Rc2+ {[%emt 0:01:25]} 70. Kg1 {[%emt 0:00:20]} Kf4 {[%emt 0:00:11][%cal Oc6e5] ( -> ...Ne5!)} 71. Rf7 {[%emt 0:00:40]} a6 {[%emt 0:01:08]} 72. Rf6 {[%emt 0:00:17]} Kg3 {[%emt 0:00:32]} (72... Ne5 $142 73. Kf1 Kg3 74. Ke1 f4 (74... Kxh3 $2 75. Rxf5 Rc5 76. Rf6 $19) 75. Kd1 Ra2 76. Rf5 Rxa5 77. Rf8 f3 (77... Kxh3 $2 78. Rxf4 Rc5 79. Kd2 $19) 78. Kd2 Kxh3 79. Kd1 Kg3 80. Rf6 f2 81. Kc2 Nf3 82. Rg6+ Rg5 83. Rxg5+ Nxg5 84. Kd3 f1=Q+ (84... f1=B+ {ist ein Selbstmatt.} 85. Kd2 a5 86. Kd1 Nf3 87. Kc2 Bb5 88. Kc3 Kf4 89. Kb3 Nd4+ 90. Kb2 Ke4 91. Kc3 Ke3 92. Kb2 Kd3 93. Kb1 Bc4 94. Ka1 Nc2+ 95. Kb2 a4 96. Kb1 a3 97. Kc1 a2 98. Kd1 a1=Q#) 85. Kd4 Qb5 86. Kc3 Ne4+ 87. Kd4 Qc6 88. Ke5 Kf3 89. Kd4 Qc5+ 90. Kd3 Qc3#) 73. Rg6+ {[%emt 0:00:26]} Kf3 {[%emt 0:00:09] Schwarz setzt Matt.} 74. h4 {[%emt 0:00:08]} Ne5 {[%emt 0:00:32]} 75. Rg5 {[%emt 0:00:34]} Rc1+ {[%emt 0:00:10] Gewichteter Fehlerwert: Weiß=0.54/Schwarz=0.49.  Verlustzug:     	Weiß=3     	---        Gewinn verpasst:   	---       	Schwarz=3     Fehler:       	Weiß=3     	Schwarz=2     Ungenau:       	Weiß=4     	Schwarz=6     OK:         	Weiß=13    	Schwarz=17    Bester:       	Weiß=2     	Schwarz=3     Stark:        	Weiß=1     	Schwarz=1} 0-1

[Event "NY Presidents Day IM-B 2024"]
[Site "New York"]
[Date "2024.02.19"]
[Round "8.5"]
[White "Poliannikov, Danila"]
[Black "Graif, William"]
[Result "1-0"]
[ECO "B76"]
[WhiteElo "2282"]
[BlackElo "2302"]
[Annotator "TA"]
[PlyCount "103"]
[EventDate "2024.02.14"]
[EventType "schev"]
[EventCountry "USA"]
[SourceTitle "playchess.com"]
[Source "ChessBase"]
[SourceQuality "1"]
[TimeControl "5400+30"]

{[%evp 26,103,29,15,12,28,35,12,19,14,21,-10,0,0,17,0,0,0,0,0,0,-12,-16,-31,-3,-3,-8,-15,0,-22,-11,-20,0,0,0,0,0,0,0,0,0,0,0,0,0,0,0,0,0,0,0,3,15,11,8,0,0,-72,3,-195,48,55,240,208,184,180,329,311,347,332,440,383,522,492,29996,29997,29997,29998,29998,29999]} 1. e4 {[%emt 0:01:34]} c5 {[%emt 0:00:13]} 2. Nf3 {[%emt 0:00:02]} d6 {[%emt 0:00:14]} 3. d4 {[%emt 0:00:04]} cxd4 {[%emt 0:00:06]} 4. Nxd4 {[%emt 0:00:01]} Nf6 {[%emt 0:00:08]} 5. Nc3 {[%emt 0:00:02]} g6 {[%emt 0:01:42]} 6. Be3 {[%emt 0:00:03]} Bg7 {[%emt 0:00:05]} 7. f3 {[%emt 0:00:02]} O-O {[%emt 0:00:07]} 8. Qd2 {[%emt 0:00:01]} Nc6 {[%emt 0:00:06]} 9. g4 {[%emt 0:00:02]} Be6 {[%emt 0:00:29]} 10. O-O-O {[%emt 0:01:07]} Nxd4 {[%emt 0:00:10]} 11. Bxd4 {[%emt 0:00:02]} Qa5 {[%emt 0:00:09]} 12. a3 {[%emt 0:00:05]} Rab8 {[%emt 0:00:17]} 13. Kb1 {[%emt 0:03:56]} Rfc8 {[%emt 0:00:13]} 14. h4 {[%emt 0:00:05]} b5 {[%emt 0:00:36] [#] Strongly threatening ...b4.} 15. Nd5 {[%emt 0:00:18]} Qxd2 {[%emt 0:00:38]} 16. Rxd2 {[%emt 0:00:07]} Bxd5 {[%emt 0:05:51] The position is equal.} 17. exd5 {[%emt 0:00:05]} a5 {[%emt 0:02:40]} 18. Bh3 {[%emt 0:04:30]} Ne8 {[%emt 0:17:18]} 19. Re1 {[%emt 0:12:48]} Rb7 {[%emt 0:13:23]} 20. Bxg7 {[%emt 0:04:39]} Kxg7 {[%emt 0:00:24]} 21. Rd4 {[%emt 0:00:17]} Rc5 {[%emt 0:07:17]} 22. g5 {[%emt 0:02:54]} Kf8 {[%emt 0:08:39]} 23. f4 {[%emt 0:10:11]} Nc7 {[%emt 0:08:18]} 24. Bf1 {[%emt 0:07:55]} b4 {[%emt 0:03:54]} 25. a4 {[%emt 0:06:02]} Rb8 {[%emt 0:00:30]} (25... Nxd5 $6 26. Rxd5 (26. Bg2 e6 $11) 26... Rxd5 27. Bg2 $16) 26. Bc4 {[%emt 0:03:26]} Ne8 {[%emt 0:02:38]} 27. Bd3 {[%emt 0:06:39]} Ng7 {[%emt 0:02:09]} 28. Ka2 {[%emt 0:07:20]} Rbc8 {[%emt 0:08:40]} 29. Kb3 {[%emt 0:00:46]} f5 {[%emt 0:03:25]} 30. Re2 {[%emt 0:08:37]} Kf7 {[%emt 0:00:48]} 31. Bb5 {[%emt 0:00:52]} Nh5 {[%emt 0:01:22]} 32. Rg2 {[%emt 0:03:08]} Kg7 {[%emt 0:02:21]} 33. Re2 {[%emt 0:04:17]} R8c7 {[%emt 0:00:30]} 34. Bc6 {[%emt 0:01:59]} Ng3 {[%emt 0:00:58]} 35. Rg2 {[%emt 0:00:57]} Ne4 {[%emt 0:02:40]} 36. Bb5 {[%emt 0:00:54]} Kf8 {[%emt 0:04:42]} 37. Bd3 {[%emt 0:00:53]} e5 {[%emt 0:00:49]} 38. dxe6 {[%emt 0:00:19]} d5 {[%emt 0:00:08]} 39. Bb5 {[%emt 0:05:41][%cal Oh4h5]} Ke7 {[%emt 0:00:08]} 40. Bd7 {[%emt 0:00:09][%cal Oh4h5]} Kd6 $1 {[%emt 0:00:29]} (40... Rc4 $2 41. Rxd5 R4c5 42. Rd4 $18) 41. h5 {[%emt 0:01:58]} gxh5 {[%emt 0:01:02]} (41... Rc4 $17 42. hxg6 (42. Rxc4 Rxc4 43. Ka2 Nc5 $17) 42... hxg6 (42... Rxd4 $2 43. gxh7 Nc5+ 44. Ka2 $18) 43. Rxc4 Rxc4) 42. Rh2 $2 {[%emt 0:00:32] [#]} (42. Bb5 $1 $11) 42... h4 $1 {[%emt 0:02:38][%mdl 512]} 43. Bb5 $1 $14 {[%emt 0:01:46]} ({And not} 43. Rxh4 Rxc2 44. e7 (44. Rxh7 $2 Rg2 $19) 44... Kxd7 $19) 43... Kxe6 $2 {[%emt 0:01:18]} ({Better is} 43... Re7 $14) 44. Rxh4 $18 {[%emt 0:00:04]} Rxc2 {[%emt 0:01:37] Threatens to win with ...Nd2+.} 45. Rh6+ {[%emt 0:00:08]} Ke7 {[%emt 0:00:21]} (45... Kf7 {was worth a try.}) 46. Rxh7+ {[%emt 0:00:05]} Ke6 {[%emt 0:00:24] ...Rxb2+ is the strong threat.} 47. Rh6+ {[%emt 0:01:10]} Ke7 {[%emt 0:00:04] White must now prevent ...Nd2+.} 48. Rxd5 {[%emt 0:00:42]} Nd2+ {[%emt 0:00:37]} 49. Ka2 {[%emt 0:00:11] Threatening mate with Rh7+.} Ne4 {[%emt 0:01:09]} (49... Kf8 $18 50. Bd3 (50. Rxf5+ Kg7 $18) 50... b3+ 51. Ka3 R2c6 52. Rxf5+ (52. Rxa5 Kg7 $18) 52... Kg7 53. Rxc6 (53. Rxa5 Rxh6 54. gxh6+ Kxh6 $18) 53... Rxc6 54. Rxa5 Rc8) 50. Rh7+ {[%emt 0:00:49] White mates.} Ke6 {[%emt 0:00:18]} 51. Re5+ {[%emt 0:00:08]} Kd6 {[%emt 0:00:14]} 52. Rh6+ {[%emt 0:00:05] Weighted Error Value: White=0.11 (very precise) /Black=0.49.  Loses game:     	White=1     	Black=1      Missed win:     	---       	Black=1      Mistake:       	White=1     	Black=3      Inaccurate:     	White=1     	Black=3      OK:         	White=11    	Black=10     Best:        	White=6     	Black=3      Strong:       	White=1     	Black=1      Brilliant:      	White=1     	---} 1-0

[Event "NY Presidents Day IM-B 2024"]
[Site "New York"]
[Date "2024.02.19"]
[Round "8.6"]
[White "Wongso, Steve"]
[Black "Tanenbaum, Zachary"]
[Result "1-0"]
[ECO "C47"]
[WhiteElo "2229"]
[BlackElo "2272"]
[Annotator "TA"]
[PlyCount "65"]
[EventDate "2024.02.14"]
[EventType "schev"]
[EventCountry "USA"]
[SourceTitle "playchess.com"]
[Source "ChessBase"]
[SourceQuality "1"]
[TimeControl "5400+30"]

{[%evp 25,65,-22,-13,-20,-4,-56,-18,-13,-10,-52,0,-24,0,0,0,0,11,0,0,0,74,3,3,0,-4,-10,14,0,0,0,709,665,29975,29962,29989,29990,29991,29992,29994,29995,29998,29999]} 1. e4 {[%emt 0:00:02]} e5 {[%emt 0:27:16]} 2. Nf3 {[%emt 0:00:06]} Nc6 {[%emt 0:00:35]} 3. Nc3 {[%emt 0:00:06]} Nf6 {[%emt 0:00:04]} 4. d4 {[%emt 0:00:04]} exd4 {[%emt 0:00:07]} 5. Nxd4 {[%emt 0:00:04]} Bb4 {[%emt 0:00:24]} 6. Nxc6 {[%emt 0:00:06]} bxc6 {[%emt 0:00:05]} 7. Bd3 {[%emt 0:00:03]} d5 {[%emt 0:00:09]} 8. exd5 {[%emt 0:00:05]} O-O {[%emt 0:00:13]} 9. O-O {[%emt 0:00:19]} cxd5 {[%emt 0:00:07]} 10. Bg5 {[%emt 0:00:09]} c6 {[%emt 0:00:22]} 11. Na4 {[%emt 0:00:08]} h6 {[%emt 0:02:11]} 12. Bh4 {[%emt 0:00:03]} Re8 {[%emt 0:02:05]} 13. c3 {[%emt 0:00:10]} Bd6 {[%emt 0:01:09]} 14. Bc2 {[%emt 0:02:16]} a5 {[%emt 0:13:10]} 15. Bg3 {[%emt 0:25:22]} (15. Re1 $11) 15... c5 {[%emt 0:13:11]} 16. Re1 {[%emt 0:03:35] Die Stellung ist ausgeglichen.} Be6 {[%emt 0:04:08]} 17. Bh4 {[%emt 0:03:46]} Rc8 {[%emt 0:04:15]} ({Vorzuziehen ist} 17... g5 $1 $15 18. Bg3 Rc8) 18. Qf3 {[%emt 0:16:53]} Be7 {[%emt 0:13:02]} 19. Qd3 {[%emt 0:08:40]} Ne4 {[%emt 0:09:52]} 20. Bxe7 {[%emt 0:00:23]} Qxe7 {[%emt 0:00:09] [#]} 21. c4 $1 {[%emt 0:03:19]} Qh4 {[%emt 0:00:40]} (21... dxc4 $2 22. Qxe4 g6 23. h3 $18) 22. Re2 {[%emt 0:21:09]} Rcd8 {[%emt 0:07:12]} (22... Nf6 $1 $11 {bleibt in der Remisbreite.}) 23. cxd5 {[%emt 0:02:39]} (23. Rae1 $16) 23... Bxd5 $11 {[%emt 0:00:42]} 24. Rae1 $36 {[%emt 0:05:17][%mdl 2048] Und Nc3 würde nun gewinnen. Weiss hat gut koordiniertes Spiel.} Re6 {[%emt 0:00:48]} 25. Nc3 {[%emt 0:02:51]} Bc6 {[%emt 0:00:32]} 26. Qc4 {[%emt 0:02:09]} (26. Qf3 $5 Nf6 $8 27. Qg3 Qxg3 28. hxg3 Rxe2 29. Rxe2 $11) 26... Rd4 {[%emt 0:00:14]} 27. Qa6 {[%emt 0:00:24] Droht stark Nxe4.} Nxf2 {[%emt 0:00:41][%mdl 8192] [#]} 28. Qxc6 $3 $18 {[%emt 0:01:13][%mdl 512]} Rd8 {[%emt 0:01:07] Gegen Qe8+ gerichtet.} (28... Nd3 29. Bxd3) 29. Rxe6 {[%emt 0:00:18] Weiß setzt Matt.} Nh3+ {[%emt 0:00:00]} 30. gxh3 {[%emt 0:00:09]} Qg5+ {[%emt 0:00:25]} 31. Kh1 {[%emt 0:00:06]} fxe6 {[%emt 0:00:17]} 32. Qxe6+ {[%emt 0:00:04]} Kh8 {[%emt 0:00:06] [#]} 33. Qe8+ $3 {[%emt 0:00:05] Gewichteter Fehlerwert: Weiß=0.13 (sehr präzise) /Schwarz=0.47.  Verlustzug:     	---       	Schwarz=1     Fehler:       	Weiß=2     	Schwarz=2     Ungenau:       	Weiß=1     	Schwarz=2     OK:         	Weiß=4     	Schwarz=4     Brilliant:      	Weiß=1     	---} 1-0

[Event "NY Presidents Day IM-B 2024"]
[Site "New York"]
[Date "2024.02.20"]
[Round "9.1"]
[White "Graif, William"]
[Black "Rajesh, C.S."]
[Result "1/2-1/2"]
[ECO "B02"]
[WhiteElo "2302"]
[BlackElo "2218"]
[Annotator "TA"]
[PlyCount "172"]
[EventDate "2024.02.14"]
[EventType "schev"]
[EventCountry "USA"]
[SourceTitle "playchess.com"]
[Source "ChessBase"]
[SourceQuality "1"]
[TimeControl "5400+30"]

{[%evp 60,172,0,0,0,0,0,-15,-10,-34,0,-45,-40,-259,-266,-256,-249,-233,0,0,85,-7215,-6326,-6326,-2183,-29955,-29956,-29960,-29956,-29964,-29956,-29959,-29968,-29964,-29965,-29970,-29970,-29970,-29971,-29970,-29971,-29969,0,0,0,0,0,0,0,0,0,0,0,0,-8,-13,0,0,0,0,0,0,0,0,0,0,0,0,0,0,0,0,0,0,0,0,0,0,0,0,0,0,0,0,0,0,0,0,0,0,0,0,0,0,0,0,0,0,0,0,0,0,0,0,0,0,0,0,0,0,0,0,0,0,0]} 1. e4 {[%emt 0:00:20]} c5 {[%emt 0:00:06]} 2. Nf3 {[%emt 0:00:29]} e6 {[%emt 0:00:19]} 3. c3 {[%emt 0:00:38]} Nf6 {[%emt 0:00:25]} 4. e5 {[%emt 0:00:05]} Nd5 {[%emt 0:00:03]} 5. d4 {[%emt 0:00:06]} cxd4 {[%emt 0:00:25]} 6. cxd4 {[%emt 0:00:03]} Be7 {[%emt 0:00:42]} 7. Nc3 {[%emt 0:03:07]} d6 {[%emt 0:01:18]} 8. Nxd5 {[%emt 0:03:34]} exd5 {[%emt 0:00:03]} 9. Bd3 {[%emt 0:00:09]} Nc6 {[%emt 0:03:04]} 10. h3 {[%emt 0:02:20] B02: Aljechin-Verteidigung (Jagdvariante).} dxe5 {[%emt 0:00:56]} 11. dxe5 {[%emt 0:02:24]} Bb4+ {[%emt 0:00:13]} 12. Bd2 {[%emt 0:03:19]} Bxd2+ $146 {[%emt 0:03:31]} ({Predecessor:} 12... Qa5 13. O-O Bxd2 14. Nxd2 Be6 15. f4 Qb6+ 16. Rf2 O-O-O 17. Nf3 g6 18. a3 Kb8 {1-0 Faber,H (2077)-Merkon,O (1930) Hoogeveen op 23rd 2019 (2)}) 13. Qxd2 {[%emt 0:00:11]} O-O {[%emt 0:07:19]} 14. O-O {[%emt 0:00:48]} f6 {[%emt 0:18:07]} 15. Rfe1 {[%emt 0:16:20]} fxe5 {[%emt 0:06:58]} 16. Nxe5 {[%emt 0:00:14]} Qf6 {[%emt 0:05:06]} 17. Nxc6 {[%emt 0:02:33]} bxc6 {[%emt 0:00:29]} 18. Rac1 {[%emt 0:05:19]} Bd7 {[%emt 0:01:50]} 19. Qc2 {[%emt 0:11:15]} g6 {[%emt 0:03:45]} 20. Qc5 {[%emt 0:07:02]} Rf7 {[%emt 0:07:58]} 21. Rc2 {[%emt 0:08:16]} Qg5 {[%emt 0:05:10]} 22. Re3 {[%emt 0:04:51]} Qh6 {[%emt 0:12:53]} 23. Rce2 {[%emt 0:00:43]} Qf8 {[%emt 0:00:33]} 24. Qd4 {[%emt 0:12:58]} Qg7 {[%emt 0:04:34]} 25. Qxg7+ {[%emt 0:04:18]} Kxg7 {[%emt 0:00:12]} 26. Rc2 {[%emt 0:00:49]} Re8 {[%emt 0:01:00]} 27. Ba6 {[%emt 0:03:54]} Rxe3 {[%emt 0:01:22]} 28. fxe3 {[%emt 0:00:01]} Re7 {[%emt 0:00:27]} 29. Rc3 {[%emt 0:02:04]} Be8 {[%emt 0:00:31]} 30. Kf2 {[%emt 0:01:15]} Kf6 {[%emt 0:00:07]} 31. b4 {[%emt 0:00:43]} Ke5 {[%emt 0:01:50]} 32. Bd3 {[%emt 0:01:06]} Kd6 {[%emt 0:00:36]} 33. Ra3 {[%emt 0:01:34]} Rb7 {[%emt 0:01:10]} 34. Ra4 {[%emt 0:01:06]} Kc7 {[%emt 0:00:09]} 35. Ba6 {[%emt 0:00:34]} c5 {[%emt 0:10:40]} 36. Bxb7 $2 {[%emt 0:00:54]} (36. Ra5 $15 Rxb4 37. Rxc5+ Kb6 38. Rc8) 36... Bxa4 $19 {[%emt 0:00:02]} 37. Bxd5 {[%emt 0:00:08]} cxb4 {[%emt 0:00:01]} 38. Kf3 {[%emt 0:01:03]} Bc6 $2 {[%emt 0:02:30]} ({Besser ist} 38... Kd6 $19 39. Bg8 Bc6+ 40. Kf4 Bd5 (40... Bxg2 41. Bxh7 Bxh3 42. Bxg6 $19) 41. Bxh7 Bxa2 42. Bxg6 a5) 39. Ke4 $11 {[%emt 0:00:16]} a5 {[%emt 0:00:04]} (39... Kd6 $11 40. Bxc6 Kxc6) 40. Bxc6 $4 {[%emt 0:01:01][%mdl 8192]} (40. Kd4 $16 Be8 41. e4) 40... Kxc6 $19 {[%emt 0:00:05]} 41. Kd4 {[%emt 0:00:07]} Kb5 {[%emt 0:02:07]} 42. e4 {[%emt 0:01:01] [#]} a4 $1 {[%emt 0:00:05]} 43. e5 {[%emt 0:01:18]} Kc6 {[%emt 0:01:07]} 44. Kc4 {[%emt 0:00:24]} b3 $1 {[%emt 0:00:04]} 45. axb3 {[%emt 0:00:06]} axb3 {[%emt 0:00:02]} 46. Kxb3 {[%emt 0:00:03]} Kd5 {[%emt 0:00:02]} 47. Kc3 {[%emt 0:00:06]} Kxe5 {[%emt 0:04:00]} 48. Kd3 {[%emt 0:00:08]} Kf4 {[%emt 0:00:00]} 49. Ke2 {[%emt 0:00:14]} Kg3 {[%emt 0:00:00]} 50. Kf1 {[%emt 0:00:04]} g5 $2 {[%emt 0:00:00]} (50... Kh2 {setzt Matt} 51. h4 Kg3 52. h5 g5 (52... gxh5 53. Kg1 $11) 53. Kg1 h6 54. Kh1 Kh4 55. Kh2 Kg4 56. Kh1 Kxh5 57. Kh2 Kg4 58. Kg1 Kg3 59. Kh1 g4 60. Kg1 h5 61. Kh1 h4 62. Kg1 h3 63. gxh3 Kxh3 64. Kf2 g3+ 65. Kf1 Kh2 66. Ke2 g2 67. Kd3 g1=Q (67... g1=B 68. Ke4 $11) 68. Kc4 Qg5 69. Kc3 Qc5+ 70. Kb3 Kg3 71. Ka4 Kf3 72. Kb3 Ke4 73. Ka4 Kd3 74. Kb3 Qb5+ 75. Ka3 Kc3 76. Ka2 Qb2#) 51. Kg1 $11 {[%emt 0:00:05]} h6 {[%emt 0:00:00]} 52. Kh1 {[%emt 0:00:40]} Kf2 {[%emt 0:00:00]} 53. Kh2 {[%emt 0:00:10]} h5 {[%emt 0:00:04]} 54. Kh1 {[%emt 0:00:31]} Kf1 {[%emt 0:00:34]} (54... h4 $5) 55. Kh2 $1 {[%emt 0:00:29]} Ke2 {[%emt 0:00:21]} 56. Kg3 {[%emt 0:00:48]} Ke3 {[%emt 0:03:31]} 57. Kh2 $1 {[%emt 0:00:15]} Kf4 {[%emt 0:00:00]} 58. Kh1 {[%emt 0:00:26]} Kg3 {[%emt 0:00:00]} 59. Kg1 {[%emt 0:00:05]} h4 {[%emt 0:00:00]} 60. Kh1 {[%emt 0:00:27]} Kf2 {[%emt 0:00:00]} 61. Kh2 {[%emt 0:00:07]} Kf1 {[%emt 0:00:00]} 62. Kh1 {[%emt 0:00:19]} Kf2 {[%emt 0:00:00]} 63. Kh2 {[%emt 0:00:06]} Ke3 {[%emt 0:00:00]} 64. Kh1 {[%emt 0:00:15]} Ke2 {[%emt 0:00:00]} (64... Kf2 $5) 65. Kh2 {[%emt 0:00:07]} Kf2 {[%emt 0:00:00]} 66. Kh1 {[%emt 0:00:04]} Kg3 {[%emt 0:00:00]} (66... Kf1 $5) 67. Kg1 {[%emt 0:00:03]} Kf4 {[%emt 0:00:00]} 68. Kf2 {[%emt 0:00:22]} Ke4 {[%emt 0:00:08]} 69. g3 {[%emt 0:00:31]} Kf5 {[%emt 0:00:24]} 70. gxh4 {[%emt 0:00:23]} g4 {[%emt 0:00:05]} 71. Kg3 {[%emt 0:00:19]} gxh3 {[%emt 0:00:04]} 72. Kxh3 {[%emt 0:00:04]} Kg6 {[%emt 0:00:04]} 73. Kg4 {[%emt 0:00:04]} Kh6 {[%emt 0:00:01]} 74. h5 {[%emt 0:00:08]} Kg7 {[%emt 0:00:03]} 75. Kg5 {[%emt 0:00:07]} Kh7 {[%emt 0:00:03]} 76. Kf5 {[%emt 0:00:05]} Kh6 {[%emt 0:00:02]} 77. Kg4 {[%emt 0:00:04]} Kh7 {[%emt 0:00:01]} 78. Kg5 {[%emt 0:00:03]} Kg7 {[%emt 0:00:02]} 79. h6+ {[%emt 0:00:08]} Kh7 {[%emt 0:00:01]} 80. Kh5 {[%emt 0:00:13]} Kh8 {[%emt 0:00:03]} 81. Kg6 {[%emt 0:00:04]} Kg8 {[%emt 0:00:01]} 82. Kf6 {[%emt 0:00:08]} Kh7 {[%emt 0:00:03]} 83. Kg5 {[%emt 0:00:04]} Kh8 {[%emt 0:00:02]} 84. Kg6 {[%emt 0:00:05]} Kg8 {[%emt 0:00:02]} 85. h7+ {[%emt 0:00:08]} Kh8 {[%emt 0:00:01]} 86. Kf6 {[%emt 0:00:07]} Kxh7 {[%emt 0:00:03]} 1/2-1/2